Cogmind - Beta 9.3 @@@ ROGUE MODE // 2020.01.04 @ 11:35:00 Player: Cipherpunk Result: Destroyed by S-10 Pest with Light Assault Rifle Performance ------------- Evolutions (2) 1000 Regions Visited (3) 600 Robots Destroyed (101) 505 Value Destroyed (2829) 2829 Prototype IDs (1) 20 Alien Tech Used (0) 0 Bonus (55) 55 TOTAL SCORE: 5009 Bonus ------- High Alert Combat Kills 55 Cogmind --------- Core Integrity 0/550 Matter 276/300 Energy 100/100 System Corruption 5% Temperature Cool (0) Movement Core (1100) Ox21 Location -8/Materials Parts ------- > --- POWER (1) -------- (None) > --- PROPULSION (3) --- (None) > --- UTILITY (5) ------ High-capacity Storage Unit High-capacity Storage Unit Transport Network Coupler Melee Analysis Suite Melee Analysis Suite > --- WEAPON (2) ------- Scythe > --- INVENTORY (20) --- Light Nuclear Core Light Nuclear Core Improved Flight Unit Improved Flight Unit Improved Flight Unit Improved Flight Unit Improved Flight Unit Improved Flight Unit Medium Storage Unit Advanced Sensor Array Hacking Suite System Shield System Shield Peak State ------------ > --- POWER ------------ Light Nuclear Core > --- PROPULSION ------- Aluminum Leg Carbon-fiber Leg Titanium Leg > --- UTILITY ---------- High-capacity Storage Unit High-capacity Storage Unit Transport Network Coupler Melee Analysis Suite Light Armor Plating > --- WEAPON ----------- Scythe Scythe > --- INVENTORY -------- Light Nuclear Core Light Nuclear Core Light Nuclear Core Carbon-fiber Leg Improved Flight Unit Improved Flight Unit Improved Flight Unit Improved Flight Unit Improved Flight Unit Improved Flight Unit Medium Storage Unit Advanced Sensor Array Hacking Suite System Shield System Shield Small Laser Small Laser Heavy Assault Rifle Grenade Launcher Scythe [Rating: 28] Favorites ----------- Power Ion Engine Engine Ion Engine Power Core Light Nuclear Core Propulsion Aluminum Leg Leg Aluminum Leg Wheel Compact Wheel Utility High-capacity Storage Unit Device Improved Sensor Array Storage High-capacity Storage Unit Processor Transport Network Coupler Protection Medium Armor Plating Weapon Scythe Energy Gun Small Laser Energy Cannon Beam Cannon Ballistic Gun Light Assault Rifle Launcher Grenade Launcher Slashing Weapon Scythe Build | -11 -10 -9 -8 ------- Run | Scr Mat Mat Mat Slots Evolved 4 | . . 2 2 Power . | . . . . Propulsion 1 | . . . 1 Utility 3 | . . 2 1 Weapon . | . . . . Parts Attached 90 | . 16 35 39 Power 10 | . 3 4 3 Engine 7 | . 3 4 . Core 3 | . . . 3 Reactor . | . . . . Propulsion 35 | . 5 12 18 Treads . | . . . . Leg 22 | . . 6 16 Wheel 13 | . 5 6 2 Hover . | . . . . Flight . | . . . . Utility 19 | . 5 5 9 Device 1 | . . . 1 Storage 5 | . 5 . . Processor 3 | . . 1 2 Hackware . | . . . . Protection 10 | . . 4 6 Artifact . | . . . . Weapon 26 | . 3 14 9 Energy Gun 10 | . 1 6 3 Energy Cannon 1 | . . 1 . Ballistic Gun 6 | . 1 4 1 Ballistic Cannon . | . . . . Launcher 3 | . 1 1 1 Special Weapon . | . . . . Impact Weapon . | . . . . Slashing Weapon 6 | . . 2 4 Piercing Weapon . | . . . . Special Melee Weapon . | . . . . Unidentified Prototypes . | . . . . Parts Lost 54 | . 6 23 25 Power 7 | . 1 3 3 Propulsion 20 | . 3 6 11 Utility 8 | . . 3 5 Weapon 19 | . 2 11 6 Highest Loss Streak 12 | . 3 7 12 Average Slot Usage (%) 92 | . 98 90 89 Engine 8 | . 13 9 2 Core 1 | . . . 6 Leg 12 | . 1 13 21 Wheel 11 | . 26 7 1 Storage 22 | . 27 22 18 Processor 8 | . . 11 15 Protection 4 | . . 5 6 Energy Gun 4 | . 4 8 . Ballistic Gun 8 | . 23 3 . Launcher 1 | . . 4 . Slashing Weapon 6 | . . 3 15 Naked Turns . | . . . . Heaviest Build 84 | 12 71 83 84 Greatest Support 42 | 20 32 26 42 Greatest Overweight (x) 24 | . 3 24 5 Average Overweight (x) 2 | . 1 3 2 Largest Inventory Capacity 20 | . 20 20 20 Average Capacity 19 | . 17 20 20 Most Carried 20 | . 18 20 20 Average Carried 17 | . 12 19 18 Final Capacity 20 | 6 20 20 20 Final Carried 20 | 6 18 20 13 Class Distribution -------------------- 36% | Hauler-Mutant 33% | Scavenger-Mutant 29% | Mutant Dominant Class ---------------- Mutant | -10/Materials Hauler-Mutant | -9/Materials Scavenger-Mutant | -8/Materials Resources | -11 -10 -9 -8 ----------- Run | Scr Mat Mat Mat Matter Collected 1325 | 200 253 535 337 Remotely . | . . . . Salvage Created 3703 | . 593 1553 1557 Parts 229 | . 49 105 75 Haulers Intercepted 7 | . 2 2 3 Recyclers Shooed 3 | . . 2 1 Parts Field Recycled . | . . . . Retrieved Matter . | . . . . Parts Self-Destructed . | . . . . Prevented . | . . . . Kills | -11 -10 -9 -8 ------- Run | Scr Mat Mat Mat Combat Hostiles Destroyed 74 | . 13 33 28 Melee 23 | . . 2 21 Guns 39 | . 11 24 4 Cannons 3 | . . 3 . AOE 9 | . 2 4 3 Classes Destroyed 12 | . 8 3 1 Worker 7 | . . 6 1 Builder 3 | . 1 2 . Tunneler 1 | . 1 . . Hauler 7 | . 2 2 3 Recycler 3 | . 1 1 1 Operator 3 | . 2 . 1 Watcher 3 | . 1 2 . Swarmer 13 | . 6 7 . Grunt 39 | . 7 18 14 Brawler 5 | . . 1 4 Sentry 14 | . . 7 7 Hunter 3 | . . . 3 Best Kill Streak 9 | . 5 6 9 Combat Bots Only 7 | . 3 5 7 Max Kills in Single Turn 3 | . 2 3 3 Gunslinging . | . . . . Exploded 2 | . 1 2 1 Melee 1 | . . 1 1 Uniques/NPCs Destroyed . | . . . . Combat | -11 -10 -9 -8 -------- Run | Scr Mat Mat Mat Damage Taken 5264 | . 717 1836 2711 Core 1044 | . 137 353 554 Absorbed by Shields . | . . . . Core Remaining (%) 52 | 100 45 11 . Volleys Fired 206 | . 67 125 14 Largest 2 | . 2 2 2 Hottest 105 | . 60 105 80 Shots Fired 391 | . 133 231 27 Gun 358 | . 129 205 24 Cannon 23 | . . 23 . Launcher 10 | . 4 3 3 Special . | . . . . Kinetic 221 | . 121 88 12 Thermal 160 | . 8 140 12 Explosive 10 | . 4 3 3 Electromagnetic . | . . . . Robot Hit Streak 19 | . 11 19 9 Robot Miss Streak 3 | . 3 3 1 Penetration Max . | . . . . Secondary Targets 2 | . . 1 1 Max Gunslinging Chain 1 | . . 1 1 Shots Hit Robots 354 | . 92 178 84 Core Hits 160 | . 40 75 45 Critical Hits 4 | . . 1 3 Critical Kills 2 | . . 1 1 Critical Parts Destroyed 2 | . . . 2 Melee Attacks 98 | . . 14 84 Impact . | . . . . Slashing 98 | . . 14 84 Piercing . | . . . . Sneak Attacks 8 | . . 2 6 Combat Hostiles . | . . . . Follow-up Attacks 7 | . . . 7 Damage Inflicted 6645 | . 933 2762 2950 Guns 2650 | . 832 1583 235 Cannons 315 | . . 315 . Explosions 931 | . 101 363 467 Melee 2749 | . . 501 2248 Ramming . | . . . . Kinetic 1482 | . 762 579 141 Thermal 1483 | . 70 1319 94 Explosive 931 | . 101 363 467 Electromagnetic . | . . . . Impact . | . . . . Slashing 2749 | . . 501 2248 Piercing . | . . . . Highest Corruption 5 | . . . 5 Average Corruption 5 | . . . 5 Corruption Purged . | . . . . Effects 2 | . . . 2 Message Errors 1 | . . . 1 Targeting Errors 1 | . . . 1 Overload Shots . | . . . . Overflow Damage 224 | . . 135 89 Projectiles . | . . . . Explosions 55 | . . 25 30 Melee 169 | . . 110 59 Knockbacks . | . . . . Impact . | . . . . Kinetic . | . . . . Secondary . | . . . . Self-Inflicted Damage 114 | . . 13 101 Shots 5 | . . 2 3 Rammed . | . . . . Targets Rammed 1 | . . . 1 Kicked 1 | . . . 1 Crushed . | . . . . Highest Temperature 291 | . 40 291 33 Average Temperature 53 | . 10 65 13 Received Heat Transfer 2025 | . 324 792 909 Siege Activations . | . . . . Robots Corrupted . | . . . . Combat Hostiles . | . . . . Parts Fried . | . . . . Impact Corruptions . | . . . . Robots Melted . | . . . . Combat Hostiles . | . . . . Parts Melted 4 | . . 4 . Heat Transferred 3356 | . 150 2981 225 Parts Sabotaged . | . . . . Parts Stolen . | . . . . Parts Stripped . | . . . . Power Chain Reactions . | . . . . Missiles Intercepted . | . . . . Alert | -11 -10 -9 -8 ------- Run | Scr Mat Mat Mat Peak Influence 441 | . 130 411 441 Average Influence 184 | . 74 232 227 Maximum Alert Level 2 | . . 2 2 Low Security (%) 58 | . 100 32 52 Level 1 39 | . . 67 41 Level 2 2 | . . . 6 Level 3 . | . . . . Level 4 . | . . . . Level 5 . | . . . . High Security . | . . . . Max Security . | . . . . Squads Dispatched 9 | . 3 4 2 Investigation 2 | . 1 1 . Extermination . | . . . . Reinforcement 7 | . 2 3 2 Assault . | . . . . Garrison . | . . . . Intercept . | . . . . Construction Impeded . | . . . . Haulers Reinforced . | . . . . Stealth | -11 -10 -9 -8 --------- Run | Scr Mat Mat Mat Distress Signals 10 | . 1 5 4 Communications Jammed . | . . . . Distress Signals . | . . . . Times Spotted 129 | . 30 54 45 Peak Tracking Total 8 | . 4 7 8 Tactical Retreats 5 | . . 3 2 Traps | -11 -10 -9 -8 ------- Run | Scr Mat Mat Mat Traps Triggered 6 | . 1 2 3 Indirectly . | . . . . Trap Hack Attempts . | . . . . Triggered . | . . . . Disarmed . | . . . . Reprogrammed . | . . . . Reused . | . . . . Traps Extracted . | . . . . Installed . | . . . . Triggered . | . . . . Machines | -11 -10 -9 -8 ---------- Run | Scr Mat Mat Mat Machines Disabled 2 | . 1 1 . Max in Single Turn 1 | . 1 1 . Machines Sabotaged . | . . . . Garrisons Compromised . | . . . . Overloaded Fab Kills . | . . . . Fab Network Shutdowns . | . . . . Hacking | -11 -10 -9 -8 --------- Run | Scr Mat Mat Mat Machines Accessed 8 | . 3 4 1 Terminals 6 | . 2 3 1 Fabricators . | . . . . Repair Stations . | . . . . Recycling Units 1 | . 1 . . Scanalyzers 1 | . . 1 . Garrison Access . | . . . . Total Hacks 14 | . 6 7 1 Successful 6 | . 2 3 1 Failed 8 | . 4 4 . Catastrophic . | . . . . Database Lockouts . | . . . . Manual 8 | . 4 3 1 Terminals 11 | . 4 6 1 Fabricators . | . . . . Repair Stations . | . . . . Recycling Units 2 | . 2 . . Scanalyzers 1 | . . 1 . Garrison Access . | . . . . Terminal Hacks 1 | . . 1 . Hauler Manifests 1 | . . 1 . Fabricator Hacks . | . . . . Repair Station Hacks . | . . . . Recycling Unit Hacks 1 | . 1 . . Retrieve Components 1 | . 1 . . Scanalyzer 1 | . . 1 . Insert Component 1 | . . 1 . Garrison Access Hacks . | . . . . Unauthorized Hacks 11 | . 5 4 2 Terminals 3 | . 1 1 1 Operators 3 | . 1 1 1 Fabricators . | . . . . Repair Stations . | . . . . Recycling Units . | . . . . Scanalyzers . | . . . . Garrison Access . | . . . . Data Cores Recovered . | . . . . Used . | . . . . Hacking Detections 5 | . 2 2 1 Full Trace Events . | . . . . Feedback Events . | . . . . Feedback Blocked . | . . . . Robot Schematics Acquired . | . . . . Robots Built . | . . . . Matter . | . . . . Time . | . . . . Total Robot Build Rating . | . . . . Part Schematics Acquired . | . . . . Parts Built . | . . . . Matter . | . . . . Time . | . . . . Total Part Build Rating . | . . . . Parts Repaired . | . . . . Time . | . . . . Parts Recycled . | . . . . Recycled Matter . | . . . . Retrieved Matter . | . . . . Retrieved Components 9 | . 9 . . Parts Scanalyzed . | . . . . Part Schematics Acquired . | . . . . Parts Damaged . | . . . . Bothacking | -11 -10 -9 -8 ------------ Run | Scr Mat Mat Mat Used RIF Installer . | . . . . Robots Hacked . | . . . . Non-combat . | . . . . Combat . | . . . . Robot Hacks Applied . | . . . . Relay Couplers Released . | . . . . Robots Rewired . | . . . . Allies Hacked . | . . . . Hacks Repelled . | . . . . Allies | -11 -10 -9 -8 -------- Run | Scr Mat Mat Mat Total Allies . | . . . . Largest Group . | . . . . Highest-Rated Group . | . . . . Highest-Rated Ally . | . . . . Total Orders . | . . . . Ally Attacks . | . . . . Total Damage . | . . . . Kills . | . . . . Allies Corrupted . | . . . . Allies Melted . | . . . . Intel | -11 -10 -9 -8 ------- Run | Scr Mat Mat Mat Robot Analysis Total . | . . . . Derelict Logs Recovered . | . . . . Drone Launches . | . . . . Drone Recoveries . | . . . . Exploration | -11 -10 -9 -8 ------------- Run | Scr Mat Mat Mat Turns Passed 4261 | . 1256 1728 1277 Spaces Moved 2064 | 1 877 667 519 Core 1 | . . 1 . Treads . | . . . . Legs 905 | 1 39 387 478 Wheels 1158 | . 838 279 41 Hover . | . . . . Flight . | . . . . Fastest Speed 110 | 120 110 110 120 Average Speed 149 | 120 110 178 176 Slowest Speed 1250 | 120 150 1250 270 Overloaded Moves . | . . . . Propulsion Burnouts . | . . . . Robots Hopped . | . . . . Cave-ins Triggered . | . . . . Exploration Rate (%) 53 | 2 96 70 47 Regions Visited 3 Branch Regions . Pre-discovered Areas . | . . . . Known Exits Taken . | . . . . Unknown Exits Taken 3 | 1 1 1 . Scrap Searched . | . . . . Spaces Dug 3 | . . 1 2 Terrain Destroyed 61 | . 21 22 18 Melee 3 | . . 1 2 Projectile . | . . . . AOE 58 | . 21 21 16 Actions | -11 -10 -9 -8 --------- Run | Scr Mat Mat Mat Total 2746 | . 1045 967 734 Wait 209 | . 65 78 66 Move 2061 | . 876 666 519 Hop . | . . . . Pick Up 61 | . 18 30 13 Fast Attach 28 | . 1 13 14 Attach 40 | . 6 18 16 Detach 4 | . . 4 . Swap 22 | . 9 4 9 Drop 27 | . 3 15 9 Fire 206 | . 67 125 14 Melee 87 | . . 14 73 Ram . | . . . . Kick 1 | . . . 1 Crush . | . . . . Escape Stasis . | . . . . Rewire . | . . . . Trap . | . . . . Miscellaneous . | . . . . Route ------- -11/Scrapyard -10/Materials (discovered 4 exits: *Mat x3 / [*Min]) -9/Materials (discovered 4 exits: *Mat / [*Min] / [*Sto x2]) -8/Materials (discovered 1 exit: [*Fac]) History --------- Turn | Location | Event 1 | -11/Scrapyard | Discovered new exit (range 0) 1 | -11/Scrapyard | Entered Materials 120 | -10/Materials | Discovered new exit (range 11) 192 | -10/Materials | Discovered new exit (range 11) 266 | -10/Materials | Discovered new exit (range 13) 304 | -10/Materials | Build established: Mutant 625 | -10/Materials | Discovered new exit (range 15) 871 | -10/Materials | Core integrity fell below 50% 892 | -10/Materials | Lost 3 parts (2n1w) 1257 | -10/Materials | Entered another Materials area 1257 | -9/Materials | Evolved 2 slots: Utility x2 1285 | -9/Materials | Discovered new exit (range 15) 1466 | -9/Materials | Lost 3 parts (1u2w) 1643 | -9/Materials | Discovered new exit (range 16) 1727 | -9/Materials | Core integrity fell below 50% 1783 | -9/Materials | Lost 7 parts (1p2n1u3w) 1951 | -9/Materials | Discovered new exit (range 16) 2045 | -9/Materials | Build established: Scavenger-Mutant 2296 | -9/Materials | Core integrity fell below 20% 2344 | -9/Materials | Lost 3 parts (1p2w) 2427 | -9/Materials | Build established: Hauler-Mutant 2601 | -9/Materials | Discovered new exit (range 16) 2985 | -9/Materials | Entered another Materials area 2985 | -8/Materials | Evolved 2 slots: Propulsion x1, Utility x1 3156 | -8/Materials | Lost 5 parts (3n2u) 3392 | -8/Materials | Build established: Scavenger-Mutant 3601 | -8/Materials | Discovered new exit (range 11) 4067 | -8/Materials | Core integrity fell below 50% 4097 | -8/Materials | Destroyed 7 combat bots 4115 | -8/Materials | Core integrity fell below 20% 4164 | -8/Materials | Lost 12 parts (1p4n1u6w) 4262 | -8/Materials | Destroyed by S-10 Pest with Light Assault Rifle Last Messages --------------- 04098_ K-01 Serf collects debris. 04098_ U-05 Engineer builds a Wall. 04099_ Kicked O-24 Administrator out of the way. 04118_ G-47 Trooper destroyed. 04119_ Scythe destroyed. 04124_ K-01 Serf collects debris. 04125_ U-05 Engineer lays Concrete. 04131_ G-47 Trooper destroyed. 04131_ U-05 Engineer lays Concrete. 04133_ Aluminum Leg destroyed. 04136_ Y-45 Defender destroyed. 04137_ K-01 Serf collects debris. 04190_ NH4H#SV KVTFQYMJNR|I 04222_ Acquired Melee Analysis Suite. 04229_ Acquired 53 matter. 04260_ C-30 ARC bursts open, deploying its payload. 04260_ S-10 Pest unfolds itself. 04260_ Lgt. Nuclear Core destroyed. 04261_ K-01 Serf collects debris. 04261_ Carbon-fiber Leg destroyed. Map ----- +----------------------------------------------------+ | + #?? """ ???????# # #????????? | | ###### #???"""????????# < # #????????? | | #????# #??? ????????# %/#*""" """ #????????? | | #????# #####+#######??# =%+!""" """ #????????? | | ! #????# #??# = #=""" """ #????????? | | #????# #??# !##########?????????? | | #????# #??# #??????????????????? | | #????#####+##### #??# #???????????######## | | ######?????? ?# #??#^ #???????????# | | # #????# """ # #??#^ #?????####### """ | | ###### """ # #### ####### # """ ! | | + """ # *# """ | | ##???# + T %+! | | ####????# """ # !#!""" | | #???????# """ ################## # """ | | #???????# """ #????# ## ## """ | | #???????# #????# """ """ ## ## | | #?#??##########???????# """"""""" ## ######### | | #?# #???????# """"" ## #???????? | | #?# "S """ ]#???????? ## #???????? | | #?# """ """ #?????????? ?# #???????? | | #?# "" """ #???????????? ??## ##??????? | | #?# #?????#########k##### #??????? | | #??? ???????# ss %[ #??????? | | #????? ?????????# ss #??????? | | ########+#######????# @ k * #??????? | | #????# #######+### #??????? | | #???##u ## #######??????? | | % #???#; ^^## #????????????? | | ###+########## #???## ## #????????????? | | % #??????# #????# ## #????????????? | | = #??????# #????# a## " " #????????????? | | """ ######## ######k ## "G" #????????????? | | """ #[ """ # ## """ ! #????????????? | | """ # """ # !## #????????????? | | # """ # ##############?????????? | | ####### %+ ^ ???????? | | ## # !!! "T" a ^ ???????? | | ##% # ! ! ???????? | | ###+##### ! ##############?????????? | | ## ## ?# ##"T"# #??????????????????????? | | ?# ## # ##"""# #??????????????????????? | | ?# ## # ###### #??????????????????????? | | ?# ## + ##???# #??????????????????????? | | ?# ## # # ??# #??????????????????????? | | ?# ## # # ??# #######????????????????? | | ## ######### # ?# #! #????????????????? | | # # ## # ?# # !#????????????????? | | # # + # # * # !!#????????????????? | | %# # ## # #//%# #????????????????? | +----------------------------------------------------+ Best States ------------- Heat Dissipation 31 Energy Generation 14 Energy Capacity 265 Matter Stores 300 Matter Capacity 300 Sight Range 16 Robot Scan Range 13 Terrain Scan Density 10 Armor Coverage 225 Resistance: KI 20 Evasion (%) 40 Melee Accuracy 10 Item Schematics ----------------- None Robot Schematics ------------------ None Fabricated ------------ Nothing Alien Tech Used ----------------- None Achievements -------------- None Challenges ------------ None Game ------ Seed TrackerRecoilCoupler Manual? 0 Play Time 00:38:59 Cumulative 94.6 hours Start 2020.01.04 @ 11:00:40 End 2020.01.04 @ 11:35:00 Sessions 1 Manual Loads 0 Difficulty Rogue Special Mode None Game No. 86 Rogue 86 Adventurer 0 Explorer 0 Win Type - Total 0 Types 0/0/0/0/0/0/0 Lore% 49 Gallery% 55 Achievement% 39 Wizard Run 0 Options --------- ASCII 0 Keyboard 1 Movement Numpad Keybinds 0 Fullscreen 2 Font 18/Terminus Map View 76x50 Tactical HUD 1 Map Filters NONE Filters NONE Steam 1 RUN: f72c7a2e-e531-4504-9224-2e848067fec3